bitfinex/quotes_SOLUSD_20230102
["timestamp","ask_amount","ask_price","bid_price","bid_amount"]
[1672636347993,30.0,9.9813,9.9738,23.7591]
[1672636348829,30.0,9.9813,9.9739,30.0]
[1672636349046,16.62104357,9.9809,9.9738,23.7591]
[1672636349372,16.62104357,9.9809,9.9739,30.0]
[1672636350519,16.62104357,9.9809,9.9738,23.7591]
[1672636350841,30.0,9.9808,9.9738,23.7591]
[1672636351146,5.72,9.98,9.9738,23.7591]
[1672636351983,16.60791557,9.9799,9.9738,23.7591]
[1672636357442,16.60791557,9.9799,9.9738,23.69732075]
[1672636360404,30.0,9.9798,9.9738,23.69732075]
[1672636361023,46.60660263,9.9798,9.9738,23.69732075]
[1672636369227,16.60660263,9.9798,9.9739,30.0]
[1672636369845,75.08997863,9.9811,9.9738,23.69732075]
[1672636370058,75.08997863,9.9811,9.9739,30.0]
[1672636371137,16.62235622,9.981,9.9739,30.0]
[1672636377413,30.0,9.9809,9.9739,30.0]
[1672636377627,16.62235622,9.981,9.9738,23.69732075]
[1672636378163,16.62235622,9.981,9.9739,30.0]
[1672636381317,30.0,9.9809,9.9738,23.69732075]
[1672636381958,16.61973089,9.9808,9.9738,23.69732075]
[1672636384895,16.61973089,9.9808,9.9739,30.0]
[1672636385109,30.0,9.9807,9.9738,23.69732075]
[1672636385939,16.61710545,9.9806,9.9738,23.69732075]
[1672636386896,30.0,9.9805,9.9738,23.69732075]
[1672636390152,16.6144799,9.9804,9.9738,23.69732075]
[1672636392564,30.0,9.9803,9.9738,23.69732075]
[1672636392984,30.0,9.9803,9.9728,25.32]
[1672636392985,75.08997863,9.9792,9.9728,25.32]
[1672636393201,75.08997863,9.9788,9.9728,25.32]
[1672636393408,105.28,9.9787,9.9728,25.32]
[1672636393748,242.74255611,9.9787,9.9728,25.32]
[1672636393929,137.46255611,9.9786,9.9728,25.32]
[1672636394139,105.28,9.9785,9.9728,25.32]
[1672636394350,242.74255611,9.9785,9.9728,25.32]
[1672636394557,30.0,9.9783,9.9728,25.32]
[1672636394767,30.0,9.9781,9.9728,25.32]
[1672636394982,75.28,9.978,9.9728,25.32]
[1672636395192,30.0,9.9779,9.9728,25.32]
[1672636396031,81.83372496,9.9778,9.9728,25.32]
[1672636396363,30.0,9.9777,9.9728,25.32]
[1672636396783,111.83372496,9.9777,9.9728,25.32]
[1672636398035,30.0,9.9775,9.9728,25.32]
[1672636399082,30.0,9.9773,9.9728,25.32]
[1672636399523,157.12372496,9.9772,9.9728,25.32]
[1672636399716,30.0,9.9771,9.9728,25.32]
[1672636399917,30.0,9.9769,9.9728,25.32]
[1672636400343,30.0,9.9767,9.9728,25.32]
[1672636400676,30.0,9.9765,9.9728,25.32]
[1672636401082,157.12372496,9.9764,9.9728,25.32]
[1672636401298,30.0,9.9763,9.9728,25.32]
[1672636401607,111.83372496,9.9763,9.9728,25.32]
[1672636401821,30.0,9.9761,9.9728,25.32]
[1672636402151,30.0,9.9761,9.9672,24.5992]
[1672636402349,75.08997863,9.973,9.9672,24.5992]
[1672636402566,75.08997863,9.9729,9.9672,24.5992]
[1672636402758,75.08997863,9.973,9.9672,24.5992]
[1672636402974,30.0,9.9729,9.9672,24.5992]
[1672636403182,30.0,9.9727,9.9672,24.5992]
[1672636406049,30.0,9.9725,9.9672,24.5992]
[1672636409618,29.88764784,9.9725,9.9672,24.5992]
[1672636410148,30.0,9.9723,9.9672,24.5992]
[1672636414023,16.50146155,9.9722,9.9672,24.5992]
[1672636414235,30.0,9.9721,9.9672,24.5992]
[1672636418034,30.0,9.9719,9.9672,24.5992]
[1672636422233,16.4962015,9.9718,9.9672,24.5992]
[1672636425816,30.0,9.9717,9.9672,24.5992]
[1672636426964,30.0,9.9715,9.9672,24.5992]
[1672636431086,30.0,9.9713,9.9672,24.5992]
[1672636435081,16.48831064,9.9712,9.9672,24.5992]
[1672636436975,30.0,9.9717,9.9672,24.5992]
[1672636438969,16.49357132,9.9716,9.9672,24.5992]
[1672636443180,30.0,9.9758,9.9672,24.5992]
[1672636443397,30.0,9.9758,9.9673,30.0]
[1672636444341,16.53301298,9.9746,9.9673,30.0]
[1672636444535,16.53301298,9.9746,9.9674,24.7246]
[1672636445168,30.0,9.9758,9.9674,24.7246]
[1672636445389,30.0,9.9758,9.9675,23.2514]
[1672636446007,30.0,9.9758,9.9673,30.0]
[1672636446008,30.0,9.9758,9.9676,23.2514]
[1672636446654,30.0,9.9758,9.9677,23.2514]
[1672636446864,30.0,9.9758,9.9678,23.2514]
[1672636447073,30.0,9.9756,9.9679,23.2514]
[1672636450861,111.83372496,9.9756,9.9679,23.2514]
[1672636451171,30.0,9.9754,9.9679,23.2514]
[1672636454234,30.0,9.9752,9.9679,23.2514]
[1672636455054,30.0,9.975,9.9679,23.2514]
[1672636456235,30.0,9.9748,9.9679,23.2514]
[1672636457385,30.0,9.9746,9.9679,23.2514]
[1672636458963,16.53169864,9.9745,9.9679,23.2514]
[1672636459172,30.0,9.9744,9.9679,23.2514]
[1672636463169,16.52906988,9.9743,9.9679,23.2514]
[1672636463364,30.0,9.9742,9.9679,23.2514]
[1672636466938,16.52644102,9.9741,9.9679,23.2514]
[1672636467375,30.0,9.974,9.9679,23.2514]
[1672636471027,30.0,9.9738,9.9679,23.2514]
[1672636475145,16.52118297,9.9737,9.9679,23.2514]
[1672636487222,30.0,9.9736,9.9679,23.2514]
[1672636488296,16.51855379,9.9735,9.9679,23.2514]
[1672636488499,30.0,9.9734,9.9679,23.2514]
[1672636492087,15.15925784,9.9733,9.9679,23.2514]
[1672636502189,30.0,9.9738,9.9679,23.2514]
[1672636503134,15.16451631,9.9737,9.9679,23.2514]
[1672636518187,30.0,9.9749,9.9679,23.2514]
[1672636519179,15.17766063,9.9747,9.9679,23.2514]
[1672636528035,75.29,9.9767,9.9679,23.2514]
[1672636528364,83.89171163,9.9775,9.968,30.0]
[1672636528574,83.89171163,9.9775,9.97,5.73]
[1672636528989,30.0,9.9758,9.97,5.73]
[1672636529724,15.19343033,9.9759,9.97,5.73]
[1672636531608,30.0,9.9758,9.97,5.73]
[1672636532234,45.19211633,9.9758,9.97,5.73]
[1672636534241,30.0,9.9757,9.97,5.73]
[1672636534451,15.19211633,9.9758,9.97,5.73]
[1672636536221,30.0,9.9757,9.97,5.73]
[1672636536460,15.19211633,9.9758,9.97,5.73]
[1672636537084,17.68625612,9.9756,9.97,5.73]
[1672636538110,30.0,9.9759,9.97,5.73]
[1672636538641,111.2,9.9764,9.97,5.73]
[1672636540758,30.0,9.9759,9.97,5.73]
[1672636540973,30.0,9.9763,9.97,5.73]
[1672636541281,17.69012311,9.9759,9.97,5.73]
[1672636546029,17.69012311,9.9759,9.9702,30.0]
[1672636546343,17.69012311,9.9759,9.9704,30.0]
[1672636546749,17.69012311,9.9759,9.9705,20.0]
[1672636546966,75.08997863,9.9787,9.9706,30.0]
[1672636547198,75.08997863,9.9788,9.9706,52.8462]
[1672636547488,75.08997863,9.9793,9.9708,30.0]
[1672636547695,75.08997863,9.9793,9.9709,22.8462]
[1672636547909,75.08997863,9.9793,9.9711,30.0]
[1672636548120,17.72620377,9.9787,9.9711,30.0]
[1672636548330,17.72620377,9.9787,9.9713,30.0]
[1672636548744,17.72620377,9.9787,9.9714,20.0]
[1672636549169,30.0,9.9792,9.9714,20.0]
[1672636549605,30.0,9.9792,9.9714,42.885]
[1672636549833,30.0,9.9792,9.9715,30.0]
[1672636550009,17.7313565,9.9791,9.9716,20.0]
[1672636550219,30.0,9.979,9.9714,42.885]
[1672636551689,30.0,9.9788,9.9714,42.885]
[1672636552219,30.0,9.9786,9.9714,42.885]
[1672636554125,30.0,9.9784,9.9714,42.885]
[1672636555918,17.72362725,9.9785,9.9714,42.885]
[1672636557059,75.27,9.9795,9.9714,42.885]
[1672636557261,30.0,9.9784,9.97,5.67]
[1672636557471,75.28,9.9783,9.9676,117.4104]
[1672636557796,30.0,9.9782,9.9676,117.4104]
[1672636558119,30.0,9.978,9.9676,117.4104]
[1672636558305,75.28,9.9779,9.9666,24.8357]
[1672636558529,30.0,9.9778,9.9667,24.8357]
[1672636558729,30.0,9.9776,9.9668,22.5519]
[1672636558967,75.29,9.9775,9.9668,22.5519]
[1672636559174,30.0,9.9774,9.9668,22.5519]
[1672636559373,30.0,9.9772,9.9668,22.5519]
[1672636559585,75.29,9.9771,9.9668,22.5519]
[1672636559779,30.0,9.977,9.9668,22.5519]
[1672636559997,30.0,9.9768,9.9668,22.5519]
[1672636560208,75.29,9.9767,9.9668,22.5519]
[1672636560533,30.0,9.9766,9.9668,22.5519]
[1672636560750,30.0,9.9764,9.9668,22.5519]
[1672636560931,30.0,9.9762,9.9668,22.5519]
[1672636561354,30.0,9.976,9.9668,22.5519]
[1672636562103,30.0,9.9758,9.9668,22.5519]
[1672636562648,22.6254,9.9757,9.9668,22.5519]
[1672636562856,30.0,9.9756,9.9668,22.5519]
[1672636563265,30.0,9.9754,9.9668,22.5519]
[1672636563784,52.6254,9.9754,9.9668,22.5519]
[1672636565990,30.0,9.9752,9.9668,22.5519]
[1672636570191,30.0,9.975,9.9668,22.5519]
[1672636574151,30.0,9.9748,9.9668,22.5519]
[1672636576620,105.31,9.9748,9.9668,22.5519]
[1672636578210,30.0,9.9746,9.9668,22.5519]
[1672636578402,30.0,9.9744,9.9668,22.5519]
[1672636578610,30.0,9.9742,9.9668,22.5519]
[1672636578925,30.0,9.974,9.9668,22.5519]
[1672636579151,75.31,9.9739,9.9668,22.5519]
[1672636579345,30.0,9.9738,9.9668,22.5519]
[1672636579570,30.0,9.9736,9.9668,22.5519]
[1672636579781,30.0,9.9734,9.9668,22.5519]
[1672636579971,75.32,9.9733,9.9668,22.5519]
[1672636580182,30.0,9.9732,9.9668,22.5519]
[1672636580408,30.0,9.973,9.9668,22.5519]
[1672636580729,30.0,9.9728,9.9668,22.5519]
[1672636580941,75.32,9.9727,9.9668,22.5519]
[1672636581132,30.0,9.9726,9.9668,22.5519]
[1672636582101,17.64628364,9.9725,9.9668,22.5519]
[1672636582288,30.0,9.9724,9.9668,22.5519]
[1672636584724,75.08997863,9.972,9.9668,22.43794746]
[1672636584930,105.33,9.9719,9.9668,22.43794746]
[1672636586011,30.0,9.9717,9.9668,22.43794746]
[1672636586207,75.33,9.9716,9.9668,22.43794746]
[1672636586406,30.0,9.9715,9.9668,22.43794746]
[1672636586634,30.0,9.9713,9.9668,22.43794746]
[1672636586852,30.0,9.9711,9.9668,22.43794746]
[1672636587096,75.33,9.971,9.9668,22.43794746]
[1672636587270,30.0,9.9709,9.9668,22.43794746]
[1672636587477,30.0,9.9707,9.9668,22.43794746]
[1672636587674,75.34,9.9706,9.9668,22.43794746]
[1672636587889,30.0,9.9705,9.9668,22.43794746]
[1672636588157,30.0,9.9703,9.9668,22.43794746]
[1672636588439,30.0,9.9701,9.9668,22.43794746]
[1672636588626,30.0,9.9701,9.9656,23.366]
[1672636589998,17.61402966,9.97,9.9656,23.366]
[1672636590213,30.0,9.9699,9.9656,23.366]
[1672636594211,30.0,9.9697,9.9656,23.366]
[1672636598075,30.0,9.9695,9.9656,23.366]
[1672636602182,17.60628629,9.9694,9.9656,23.366]
[1672636602392,30.0,9.9693,9.9656,23.366]
[1672636602827,30.0,9.9693,9.9636,24.3317]
[1672636606087,17.60370497,9.9692,9.9636,24.3317]
[1672636606284,30.0,9.9691,9.9636,24.3317]
[1672636610166,17.60112353,9.969,9.9636,24.3317]
[1672636610383,30.0,9.9689,9.9636,24.3317]
[1672636614167,17.598542,9.9688,9.9636,24.3317]
[1672636630143,17.598542,9.9688,9.968,38.0]
[1672636630355,75.33,9.971,9.968,38.0]
[1672636630770,75.32,9.9725,9.968,38.0]
[1672636631100,75.32,9.9723,9.968,38.0]
[1672636631291,17.61661057,9.9702,9.968,38.0]
[1672636632262,30.0,9.9722,9.968,38.0]
[1672636632444,75.3,9.9751,9.968,38.0]
[1672636632662,99.3284,9.9751,9.968,38.0]
[1672636632859,24.0284,9.9751,9.97,5.71]
[1672636633735,30.0,9.975,9.97,5.71]
[1672636633926,30.0,9.975,9.968,38.0]
[1672636635071,30.0,9.9748,9.968,38.0]
[1672636636663,75.08997863,9.9742,9.968,38.0]
[1672636636866,75.31,9.9741,9.968,38.0]
[1672636637072,30.0,9.974,9.968,38.0]
[1672636637296,75.31,9.9739,9.968,38.0]
[1672636637492,30.0,9.9738,9.968,38.0]
[1672636637700,30.0,9.9736,9.968,38.0]
[1672636637905,75.32,9.9735,9.968,38.0]
[1672636638124,30.0,9.9734,9.968,38.0]
[1672636638341,30.0,9.9732,9.968,38.0]
[1672636638534,75.32,9.9731,9.968,38.0]
[1672636638744,30.0,9.973,9.968,38.0]
[1672636638959,30.0,9.9728,9.968,38.0]
[1672636639174,30.0,9.9726,9.9626,23.3782]
[1672636639401,30.0,9.9724,9.9626,23.3782]
[1672636639606,30.0,9.9722,9.9626,23.3782]
[1672636639799,75.33,9.9721,9.9626,23.3782]
[1672636640010,30.0,9.972,9.9626,23.3782]
[1672636640237,75.33,9.9719,9.9626,23.3782]
[1672636640434,30.0,9.9718,9.9626,23.3782]
[1672636641483,30.0,9.9718,9.9627,20.0]
[1672636643104,17.63596412,9.9717,9.9627,20.0]
[1672636643427,30.0,9.9716,9.9627,20.0]
[1672636643822,105.33,9.9716,9.9627,20.0]
[1672636644253,30.0,9.9716,9.9627,42.604]
[1672636647128,30.0,9.9714,9.9627,42.604]
[1672636651081,30.0,9.9712,9.9627,42.604]
[1672636655190,30.0,9.971,9.9627,42.604]
[1672636659302,30.0,9.9708,9.9627,42.604]
[1672636663253,17.6230624,9.9707,9.9627,42.604]
[1672636663384,30.0,9.9706,9.9627,42.604]
[1672636667176,30.0,9.9704,9.9627,42.604]
[1672636667598,30.0,9.9704,9.9462,135.91080483]
[1672636667821,30.0,9.9699,9.9522,188.2026]
[1672636668013,75.34,9.9698,9.9523,30.0]
[1672636668236,50.0,9.9697,9.9523,30.0]
[1672636668437,75.34,9.9696,9.9523,86.93437014]
[1672636668647,30.0,9.9694,9.9525,30.0]
[1672636668950,30.0,9.9692,9.9526,56.93437014]
[1672636669172,30.0,9.969,9.9527,50.0]
[1672636669407,75.35,9.9689,9.9528,30.0]
[1672636669603,30.0,9.9688,9.9529,20.0]
[1672636669806,75.35,9.9687,9.953,30.0]
[1672636670031,30.0,9.9686,9.953,30.0]
[1672636670238,30.0,9.9684,9.953,30.0]
[1672636670451,30.0,9.9682,9.9532,30.0]
[1672636670660,75.36,9.9681,9.9532,30.0]
[1672636670858,30.0,9.968,9.9532,30.0]
[1672636671072,30.0,9.9678,9.9533,167.9689]
[1672636671388,30.0,9.9676,9.9534,30.0]
[1672636671606,30.0,9.9674,9.9534,197.9689]
[1672636671849,75.36,9.9673,9.9534,197.9689]
[1672636672004,30.0,9.9672,9.9534,197.9689]
[1672636672214,75.36,9.9671,9.9536,30.0]
[1672636672446,30.0,9.967,9.9536,30.0]
[1672636672659,30.0,9.9668,9.9536,30.0]
[1672636672905,75.37,9.9667,9.9538,30.0]
[1672636673071,30.0,9.9666,9.9538,30.0]
[1672636673277,30.0,9.9664,9.9538,30.0]
[1672636673482,30.0,9.9662,9.954,30.0]
[1672636673693,75.37,9.9661,9.954,30.0]
[1672636673909,30.0,9.966,9.954,30.0]
[1672636674122,195.2758,9.966,9.9542,30.0]
[1672636674653,195.2758,9.966,9.9541,160.003]
[1672636674844,30.0,9.9658,9.9543,30.0]
[1672636675608,30.0,9.9656,9.9544,47.6558]
[1672636676121,30.0,9.9654,9.9546,30.0]
[1672636676743,30.0,9.9652,9.9547,24.7993]
[1672636677484,30.0,9.965,9.9548,24.7993]
[1672636677894,75.38,9.9649,9.9548,24.7993]
[1672636678103,30.0,9.9648,9.9549,24.7993]
[1672636678318,30.0,9.9646,9.9549,24.7993]
[1672636678742,30.0,9.9644,9.955,24.7993]
[1672636679382,30.0,9.9644,9.9546,22.5401]
[1672636679383,30.0,9.9642,9.9551,24.7993]
[1672636680014,30.0,9.964,9.9552,24.7925]
[1672636680776,30.0,9.9638,9.9552,24.7925]
[1672636681176,30.0,9.9636,9.9552,24.7925]
[1672636682554,24.8672,9.9637,9.9552,24.7925]
[1672636682745,24.8672,9.9637,9.9553,30.0]
[1672636683170,17.53009355,9.9635,9.9553,30.0]
[1672636684126,30.0,9.9634,9.9552,24.7925]
[1672636684528,17.53009355,9.9635,9.9553,30.0]
[1672636688020,17.53009355,9.9635,9.9552,24.7925]
[1672636688640,17.53009355,9.9635,9.9553,30.0]
[1672636689263,17.53009355,9.9635,9.9553,93.43437014]
[1672636689593,30.0,9.9634,9.9553,93.43437014]
[1672636690205,47.52880137,9.9634,9.9553,63.43437014]
[1672636690412,47.52880137,9.9634,9.9552,24.7925]
[1672636690626,47.52880137,9.9634,9.9553,30.0]
[1672636690845,17.52880137,9.9634,9.9552,24.7925]
[1672636691052,17.52880137,9.9634,9.9553,30.0]
[1672636692763,42.11350137,9.9634,9.9552,24.7925]
[1672636692940,30.0,9.9633,9.9552,24.7925]
[1672636693466,47.52750917,9.9633,9.9552,24.7925]
[1672636694944,71.60250917,9.9633,9.9552,24.7925]
[1672636697052,30.0,9.9631,9.9552,24.7925]
[1672636697247,30.0,9.9631,9.9552,22.2925]
[1672636698107,17.52363239,9.963,9.9552,22.2925]
[1672636698646,30.0,9.9629,9.9552,22.2925]
[1672636699030,40.56893239,9.963,9.9552,22.2925]
[1672636699246,17.52234008,9.9629,9.9552,22.2925]
[1672636700505,30.0,9.9627,9.9553,11.88]
[1672636703174,17.518463,9.9626,9.9553,11.88]
[1672636704425,17.518463,9.9626,9.9554,30.0]
[1672636707232,17.518463,9.9626,9.9553,11.88]
[1672636709261,17.518463,9.9626,9.9554,30.0]
[1672636713353,17.518463,9.9626,9.9556,30.0]
[1672636713885,17.518463,9.9626,9.9558,30.0]
[1672636714090,75.35,9.9684,9.9559,20.0]
[1672636714307,75.35,9.9684,9.96,5.73]
[1672636714620,75.35,9.9686,9.9601,20.0]
[1672636714834,30.0,9.9698,9.9602,30.0]
[1672636715055,30.0,9.9696,9.9602,30.0]
[1672636715251,17.59208771,9.9683,9.9603,20.0]
[1672636715459,75.36,9.9682,9.9603,20.0]
[1672636715870,75.36,9.9682,9.9601,20.0]
[1672636718095,17.58950581,9.9681,9.9601,20.0]
[1672636718309,75.36,9.968,9.9601,20.0]
[1672636718708,30.0,9.9679,9.9601,20.0]
[1672636718923,75.36,9.9678,9.9601,20.0]
[1672636719134,30.0,9.9677,9.9601,20.0]
[1672636719352,75.36,9.9676,9.9601,20.0]
[1672636719772,30.0,9.9677,9.9601,20.0]
[1672636719983,75.36,9.9676,9.9601,20.0]
[1672636720308,30.0,9.9677,9.9601,20.0]
[1672636722299,30.0,9.9675,9.9601,20.0]
[1672636724420,17.58305061,9.9676,9.9601,20.0]
[1672636728519,17.58305061,9.9676,9.9587,20.0]
[1672636728755,17.58305061,9.9676,9.9586,20.0]
[1672636729036,17.58305061,9.9676,9.9587,30.0]
[1672636729242,17.58305061,9.9676,9.9586,20.0]
[1672636730191,17.58305061,9.9676,9.9587,30.0]
[1672636730516,17.58305061,9.9676,9.9588,20.0]
[1672636730928,17.58305061,9.9676,9.9587,30.0]
[1672636731116,17.58305061,9.9676,9.9588,20.0]
[1672636731763,30.0,9.9674,9.9586,20.0]
[1672636731972,30.0,9.9672,9.9587,30.0]
[1672636732272,30.0,9.9672,9.9588,20.0]
[1672636733553,30.0,9.9672,9.9586,20.0]
[1672636736252,17.57659477,9.9671,9.9586,20.0]
[1672636739321,17.57659477,9.9671,9.9587,30.0]
[1672636739641,17.57659477,9.9671,9.9589,30.0]
[1672636739852,17.57659477,9.9671,9.959,31.88]
[1672636740065,17.57659477,9.9671,9.9591,30.0]
[1672636740271,17.57659477,9.9671,9.9592,31.88]
[1672636740465,17.57659477,9.9671,9.9593,30.0]
[1672636740677,17.57659477,9.9671,9.9594,11.88]
[1672636740885,17.57659477,9.9671,9.9595,20.0]
[1672636741111,17.57659477,9.9671,9.9596,11.88]
[1672636741318,17.57659477,9.9671,9.9597,20.0]
[1672636741713,17.57659477,9.9671,9.9598,11.88]
[1672636741858,17.57659477,9.9671,9.9599,20.0]
[1672636742073,17.57659477,9.9671,9.96,11.88]
[1672636742384,17.57659477,9.9671,9.9601,20.0]
[1672636743339,17.57659477,9.9671,9.9588,20.0]
[1672636743650,17.57659477,9.9671,9.9589,11.88]
[1672636743861,17.57659477,9.9671,9.959,20.0]
[1672636744063,17.57659477,9.9671,9.9591,11.88]
[1672636744258,17.57659477,9.9671,9.9592,20.0]
[1672636744469,17.57659477,9.9671,9.9593,11.88]
[1672636745011,17.57659477,9.9671,9.9594,20.0]
[1672636745210,17.57659477,9.9671,9.9595,11.88]
[1672636745836,17.57659477,9.9671,9.9596,20.0]
[1672636746045,17.57659477,9.9671,9.9597,11.88]
[1672636746251,17.57659477,9.9671,9.9598,20.0]
[1672636746579,17.57659477,9.9671,9.9599,11.88]
[1672636746781,17.57659477,9.9671,9.96,20.0]
[1672636747852,17.57659477,9.9671,9.9591,20.0]
[1672636748167,17.57659477,9.9671,9.9592,11.88]
[1672636748374,17.57659477,9.9671,9.9593,20.0]
[1672636748587,17.57659477,9.9671,9.9594,11.88]
[1672636748797,17.57659477,9.9671,9.9595,20.0]
[1672636748990,17.57659477,9.9671,9.9596,11.88]
[1672636749414,17.57659477,9.9671,9.9597,20.0]
[1672636749739,17.57659477,9.9671,9.9598,11.88]
[1672636750273,17.57659477,9.9671,9.9599,20.0]
[1672636751207,17.57659477,9.9671,9.96,5.69]
[1672636751841,17.57659477,9.9671,9.9601,20.0]
[1672636757215,30.0,9.9677,9.9601,20.0]
[1672636758263,17.58305061,9.9676,9.9601,20.0]
[1672636760061,30.0,9.9675,9.9601,20.0]
[1672636761118,17.58046835,9.9674,9.9601,20.0]
[1672636761842,17.58046835,9.9674,9.9596,20.0]
[1672636763527,30.0,9.9673,9.9596,20.0]
[1672636764591,17.58046835,9.9674,9.9597,30.0]
[1672636764797,17.58046835,9.9674,9.96,5.7]
[1672636765210,47.57788599,9.9679,9.9601,20.0]
[1672636783272,75.36,9.9678,9.9568,15.80730786]
[1672636783486,30.0,9.9677,9.9507,167.0219]
[1672636783712,5.72,9.96,9.9507,167.0219]
[1672636783923,5.72,9.96,9.9508,54.9205]
[1672636784322,5.72,9.96,9.9509,30.0]
[1672636784533,5.72,9.96,9.9509,54.1993]
[1672636785059,5.72,9.96,9.9511,30.0]
[1672636785597,5.72,9.96,9.9512,20.0]
[1672636786435,5.72,9.96,9.9512,44.1993]
[1672636787065,30.0,9.9599,9.9512,44.1993]
[1672636787981,30.0,9.9599,9.9513,30.0]
[1672636788127,17.48226561,9.9598,9.9514,20.0]
[1672636788732,17.48226561,9.9598,9.9513,20.0]
[1672636788941,30.0,9.9597,9.9513,20.0]
[1672636792118,17.4796793,9.9596,9.9513,20.0]
[1672636793779,30.0,9.9595,9.9513,20.0]
[1672636794541,17.4796793,9.9596,9.9513,20.0]
[1672636796114,30.0,9.9602,9.9513,20.0]
[1672636796527,30.0,9.9602,9.9513,44.1782]
[1672636797148,17.48614488,9.9601,9.9513,44.1782]
[1672636797980,30.0,9.96,9.9513,44.1782]
[1672636799034,30.0,9.96,9.9514,30.0]
[1672636799477,30.0,9.96,9.9515,20.0]
[1672636800080,17.48355872,9.9599,9.9514,20.0]
[1672636800292,30.0,9.9598,9.9514,20.0]
[1672636803453,17.48355872,9.9599,9.9514,20.0]
[1672636808424,17.48355872,9.9599,9.9515,30.0]
[1672636808626,17.48355872,9.9599,9.9516,20.0]
[1672636810519,30.0,9.9602,9.9516,20.0]
[1672636811523,17.47360677,9.9598,9.9516,20.0]
[1672636811663,17.47360677,9.9598,9.9517,30.0]
[1672636811874,17.47360677,9.9598,9.9519,30.0]
[1672636812413,24.3045,9.9603,9.9521,30.0]
[1672636812612,24.3045,9.9603,9.9522,20.0]
[1672636813451,30.0,9.9602,9.9522,20.0]
[1672636813778,30.0,9.9602,9.952,20.0]
[1672636815040,24.3045,9.9603,9.952,20.0]
[1672636815248,17.47748603,9.9601,9.952,20.0]
[1672636817665,30.0,9.96,9.952,20.0]
[1672636818298,30.0,9.96,9.9519,20.0]
[1672636819265,17.47489988,9.9599,9.9519,20.0]
[1672636819876,30.0,9.9598,9.9519,20.0]
[1672636821672,17.47489988,9.9599,9.952,30.0]
[1672636821978,17.47489988,9.9599,9.9521,20.0]
[1672636825429,17.47489988,9.9599,9.9522,30.0]
[1672636825977,17.47489988,9.9599,9.9523,20.0]
[1672636827347,17.47489988,9.9599,9.9524,30.0]
[1672636827665,17.47489988,9.9599,9.9525,20.0]
[1672636828392,30.0,9.9598,9.9519,20.0]
[1672636828607,17.47489988,9.9599,9.952,30.0]
[1672636828810,17.47489988,9.9599,9.9521,20.0]
[1672636829211,17.47231363,9.9597,9.9521,20.0]
[1672636830878,17.47231363,9.9597,9.9522,51.91589205]
[1672636831000,17.47231363,9.9597,9.9524,30.0]
[1672636831214,17.47231363,9.9597,9.9525,20.0]
[1672636831423,17.47231363,9.9597,9.9526,30.0]
[1672636831637,17.47231363,9.9597,9.9528,30.0]
[1672636831866,17.47231363,9.9597,9.9529,20.0]
[1672636832082,17.47231363,9.9597,9.953,30.0]
[1672636840993,17.47231363,9.9597,9.9531,11.86]
[1672636842034,17.47231363,9.9597,9.953,41.86]
[1672636876436,17.47231363,9.9597,9.953,11.86]
[1672636877056,17.47231363,9.9597,9.9531,30.0]
[1672636881493,17.47231363,9.9597,9.9531,81.91589205]
[1672636884438,17.47231363,9.9597,9.9532,62.71655119]
[1672636884631,17.47231363,9.9597,9.9533,30.0]
[1672636884836,17.47231363,9.9597,9.9533,81.91589205]
[1672636885050,17.47231363,9.9597,9.9535,30.0]
[1672636885369,17.47231363,9.9597,9.9537,30.0]
[1672636885792,17.47231363,9.9597,9.9539,30.0]
[1672636886198,17.47231363,9.9597,9.9541,30.0]
[1672636886617,17.47231363,9.9597,9.9543,30.0]
[1672636886960,17.47231363,9.9597,9.9545,30.0]
[1672636888843,17.47231363,9.9597,9.9545,92.71655119]
[1672636898637,17.47231363,9.9597,9.9545,62.71655119]
[1672636899049,17.47231363,9.9597,9.9546,30.0]
[1672636901368,17.47231363,9.9597,9.9545,62.71655119]
[1672636901895,17.47231363,9.9597,9.9546,30.0]
[1672636906298,17.47231363,9.9597,9.9545,62.71655119]
[1672636906729,17.47231363,9.9597,9.9541,51.91589205]
[1672636907076,17.47231363,9.9597,9.954,62.71655119]
[1672636907237,17.47231363,9.9597,9.9541,30.0]
[1672636908923,17.47231363,9.9597,9.9541,92.71655119]
[1672636914627,17.47231363,9.9597,9.9541,62.71655119]
[1672636915167,17.47231363,9.9597,9.9542,30.0]
[1672636916206,17.47231363,9.9597,9.9541,62.71655119]
[1672636916511,17.47231363,9.9597,9.9542,30.0]
[1672636922303,17.47231363,9.9597,9.9541,62.71655119]
[1672636923349,17.47231363,9.9597,9.9536,51.91589205]